bitfinex/quotes_SOLUSD_20260208
["timestamp","ask_amount","ask_price","bid_price","bid_amount"]
[1770564511985,39.89285917,87.735,87.67,0.1]
[1770564511986,2.51510925,87.732,87.674,0.26745779]
[1770564512394,2.51510925,87.732,87.672,11.40605973]
[1770564513493,2.51510925,87.732,87.67,0.1]
[1770564513686,5.13032502,87.73,87.67,0.1]
[1770564514004,2.51510925,87.724,87.633,0.27209265]
[1770564514204,2.51510925,87.72,87.647,1e-08]
[1770564514507,2.51510925,87.622,87.544,11.42282737]
[1770564514699,2.51510925,87.622,87.544,39.97989581]
[1770564514902,2.51510925,87.622,87.545,0.47437023]
[1770564515788,2.51510925,87.622,87.534,0.47662165]
[1770564516111,2.51510925,87.622,87.46,1.14337983]
[1770564516112,2.51510925,87.6,87.499,0.57662165]
[1770564516405,2.51510925,87.595,87.502,0.57884721]
[1770564517207,2.51510925,87.595,87.498,39.6152143]
[1770564517208,2.51510925,87.595,87.498,11.42883265]
[1770564517414,5.13032502,87.579,87.46,0.58104721]
[1770564517587,17.12356234,87.594,87.472,0.58104721]
[1770564517588,2.51510925,87.57,87.472,0.58104721]
[1770564517911,2.51510925,87.562,87.472,0.58104721]
[1770564518080,2.51510925,87.557,87.472,0.58104721]
[1770564518286,2.51510925,87.557,87.472,11.43216199]
[1770564518608,2.51510925,87.557,87.473,0.08322193]
[1770564518818,2.51510925,87.557,87.472,11.43216199]
[1770564519104,2.59019653,87.552,87.451,11.43492815]
[1770564519303,2.59019653,87.552,87.351,86.87180795]
[1770564519304,2.59019653,87.542,87.357,1.14472795]
[1770564519607,2.59019653,87.516,87.403,11.44117579]
[1770564519800,2.59019653,87.511,87.409,11.44046073]
[1770564519986,2.59019653,87.504,87.352,1.14479347]
[1770564520184,2.59019653,87.494,87.353,40.06731307]
[1770564520584,2.59019653,87.494,87.36,5.13032502]
[1770564520789,2.59019653,87.494,87.362,0.09136693]
[1770564520989,2.59019653,87.494,87.376,5.13032502]
[1770564521202,2.59019653,87.494,87.377,0.09136693]
[1770564521505,5.04699993,87.499,87.379,0.09724822]
[1770564521682,5.04699993,87.499,87.419,5.36086188]
[1770564521884,5.04699993,87.499,87.427,0.09724822]
[1770564522105,2.63815803,87.533,87.436,10.4911869]
[1770564522289,11.42439336,87.532,87.436,10.4911869]
[1770564522486,2.63815803,87.531,87.436,10.4911869]
[1770564522685,7.15376086,87.578,87.445,5.13032502]
[1770564522895,18.5721536,87.578,87.477,5.13032502]
[1770564523205,2.63815803,87.605,87.514,5.36086188]
[1770564523418,2.63815803,87.605,87.47,5.13032502]
[1770564523589,2.63815803,87.603,87.47,5.13032502]
[1770564523785,2.63815803,87.599,87.47,5.13032502]
[1770564523981,2.63815803,87.592,87.476,5.36086188]
[1770564524202,2.63815803,87.592,87.481,0.02114355]
[1770564524401,2.63815803,87.592,87.493,0.02114355]
[1770564525191,2.63815803,87.592,87.492,5.36086188]
[1770564525487,4.04571008,87.595,87.511,5.13032502]
[1770564525698,2.63815803,87.621,87.532,5.36086188]
[1770564525905,2.63815803,87.621,87.488,5.13032502]
[1770564526106,2.65622029,87.62,87.524,5.13032502]
[1770564526313,2.65622029,87.62,87.536,5.13032502]
[1770564526489,6.70193037,87.619,87.541,5.36086188]
[1770564526988,2.65622029,87.618,87.543,5.36086188]
[1770564527392,6.70193037,87.618,87.543,5.36086188]
[1770564527598,2.65622029,87.617,87.543,5.36086188]
[1770564528196,2.65622029,87.617,87.546,0.02612145]
[1770564528596,2.65622029,87.615,87.544,39.97989581]
[1770564529693,2.65622029,87.615,87.545,0.03442333]
[1770564530794,2.65622029,87.613,87.545,0.03442333]
[1770564531594,2.65622029,87.613,87.533,0.05067546]
[1770564531799,2.65622029,87.613,87.528,39.98720408]
[1770564532109,2.65622029,87.613,87.529,0.05067546]
[1770564532303,2.65622029,87.611,87.529,0.05067546]
[1770564532815,2.65622029,87.611,87.516,0.05862867]
[1770564533890,2.65622029,87.609,87.516,0.05862867]
[1770564534919,2.65622029,87.609,87.52,0.07426208]
[1770564536014,2.65622029,87.607,87.52,0.07426208]
[1770564537910,39.95160148,87.606,87.52,0.07426208]
[1770564538093,2.65622029,87.605,87.52,0.07426208]
[1770564539315,39.95251358,87.604,87.52,0.07426208]
[1770564539523,2.65622029,87.603,87.52,0.07426208]
[1770564540522,7.14963719,87.617,87.531,0.11905233]
[1770564540523,2.65622029,87.614,87.531,0.11905233]
[1770564541313,2.65622029,87.613,87.531,0.11905233]
[1770564541512,2.65622029,87.611,87.533,0.12622016]
[1770564541921,2.65622029,87.611,87.531,39.98583358]
[1770564542223,2.65622029,87.611,87.531,40.11205374]
[1770564542544,2.65622029,87.611,87.532,0.13330566]
[1770564542720,2.65622029,87.611,87.531,39.98583358]
[1770564543099,2.65622029,87.611,87.532,0.13330566]
[1770564543504,7.14963719,87.617,87.532,0.13330566]
[1770564543505,2.65622029,87.609,87.532,0.13330566]
[1770564543905,11.41344046,87.616,87.532,0.13330566]
[1770564544217,2.65622029,87.615,87.532,0.13330566]
[1770564545002,2.65622029,87.616,87.532,0.13330566]
[1770564545202,2.65622029,87.615,87.538,0.14723344]
[1770564545618,45.81038897,87.7,87.508,85.70644968]
[1770564545619,2.65622029,87.645,87.557,5.13032502]
[1770564545921,2.65622029,87.661,87.571,0.15407759]
[1770564546327,2.65622029,87.661,87.584,0.16084312]
[1770564547026,2.65622029,87.661,87.586,5.13032502]
[1770564547228,2.65622029,87.692,87.592,0.16084312]
[1770564547812,2.65622029,87.69,87.602,0.16753094]
[1770564548315,2.65622029,87.69,87.62,5.13032502]
[1770564548514,2.65622029,87.696,87.624,0.17414194]
[1770564549029,0.02681703,87.7,87.65,5.13032502]
[1770564549214,0.02681703,87.7,87.651,5.36086188]
[1770564549609,0.02681703,87.7,87.614,41.14]
[1770564549610,2.74281177,87.699,87.621,5.13032502]
[1770564549919,0.02681703,87.7,87.637,5.13032502]
[1770564550923,0.02681703,87.7,87.65,5.36086188]
[1770564551134,0.02681703,87.7,87.576,45.67421781]
[1770564551428,2.7696288,87.7,87.638,0.02033986]
[1770564551813,2.74281177,87.698,87.638,0.02033986]
[1770564552330,0.02681703,87.7,87.638,0.02033986]
[1770564552707,0.02681703,87.7,87.641,0.02665233]
[1770564552927,0.00108037,87.7,87.64,5.36086188]
[1770564553321,0.00108037,87.7,87.647,5.13032502]
[1770564553518,0.00108037,87.7,87.648,5.36086188]
[1770564553722,0.00108037,87.7,87.654,5.36086188]
[1770564554736,0.00108037,87.7,87.655,0.02414015]
[1770564555325,2.7556801,87.749,87.663,0.02967211]
[1770564555926,2.7556801,87.747,87.664,5.36086188]
[1770564556129,2.7556801,87.747,87.665,0.02967211]
[1770564557012,2.7556801,87.749,87.665,0.02967211]
[1770564557336,2.7556801,87.749,87.667,0.03514052]
[1770564557912,2.7556801,87.747,87.663,28.51830304]
[1770564558112,2.7556801,87.747,87.664,0.04054613]
[1770564558632,2.7556801,87.747,87.664,5.40140801]
[1770564558840,2.7556801,87.747,87.665,0.04589473]
[1770564559415,2.7556801,87.747,87.668,0.0511819]
[1770564560135,2.7556801,87.745,87.671,0.0511819]
[1770564560335,2.7556801,87.745,87.668,39.92334717]
[1770564561238,2.7556801,87.745,87.669,0.05640834]
[1770564562227,2.7556801,87.743,87.669,0.05640834]
[1770564562638,2.7556801,87.743,87.66,0.06668181]
[1770564564047,2.7556801,87.741,87.661,0.07173022]
[1770564566338,2.7556801,87.739,87.661,0.07173022]
[1770564567123,2.7556801,87.739,87.662,0.08653018]
[1770564568328,2.7556801,87.737,87.664,0.09611567]
[1770564570259,2.7556801,87.737,87.662,96.96333643]
[1770564570260,2.7556801,87.748,87.672,0.100826]
[1770564570550,2.7556801,87.758,87.681,5.36086188]
[1770564570752,2.7556801,87.758,87.682,0.10548223]
[1770564570948,3.23528216,87.754,87.682,0.10548223]
[1770564571123,2.7556801,87.752,87.682,0.10548223]
[1770564572957,2.7556801,87.753,87.699,0.11463486]
[1770564573522,1e-08,87.754,87.701,5.47999436]
[1770564573831,1e-08,87.754,87.702,0.11913248]
[1770564574027,1e-08,87.754,87.704,0.11913248]
[1770564574735,1e-08,87.754,87.706,0.12357844]
[1770564575428,2.7556801,87.753,87.706,0.12357844]
[1770564575628,2.7556801,87.753,87.704,96.91690229]
[1770564576954,2.7556801,87.752,87.696,0.12797333]
[1770564577255,2.7556801,87.752,87.688,39.91424139]
[1770564578153,2.7556801,87.752,87.683,11.40466406]
[1770564578345,2.7556801,87.752,87.677,28.51370783]
[1770564578346,2.7556801,87.752,87.687,11.40406947]
[1770564579052,2.7556801,87.75,87.662,0.13661226]
[1770564579463,2.7556801,87.75,87.649,0.14505387]
[1770564581156,2.7556801,87.748,87.649,0.14505387]
[1770564583560,2.7556801,87.746,87.649,0.14505387]
[1770564585755,2.7556801,87.744,87.649,0.14505387]
[1770564587762,2.7556801,87.742,87.649,0.14505387]
[1770564589842,2.7556801,87.74,87.649,0.14505387]
[1770564591162,2.7556801,87.738,87.649,0.14505387]
[1770564592566,2.7556801,87.738,87.65,0.19898629]
[1770564593958,2.7556801,87.736,87.652,0.20251505]
[1770564595161,2.7556801,87.736,87.654,0.20600328]
[1770564595963,2.7556801,87.734,87.657,0.20945144]
[1770564596366,5.13032502,87.732,87.633,11.41121739]
[1770564596572,5.13032502,87.728,87.587,57.08549817]
[1770564596866,2.7556801,87.723,87.627,11.41192582]
[1770564597047,2.7556801,87.718,87.621,11.4126852]
[1770564597243,2.7556801,87.713,87.6,28.53862882]
[1770564597466,2.7556801,87.708,87.6,28.53862882]
[1770564597665,2.7556801,87.687,87.558,0.21622941]
[1770564597969,73.64086188,87.697,87.558,0.21622941]
[1770564597970,2.7556801,87.677,87.56,28.65182859]
[1770564598158,2.7556801,87.672,87.56,0.1]
[1770564598366,2.7556801,87.667,87.56,0.1]
[1770564598667,2.7556801,87.662,87.56,0.1]
[1770564598869,2.7556801,87.657,87.56,0.1]
[1770564599050,2.7556801,87.652,87.56,0.1]
[1770564599252,2.7556801,87.65,87.56,0.1]
[1770564599448,2.7556801,87.649,87.561,0.22285256]
[1770564599655,2.7556801,87.648,87.561,0.22285256]
[1770564600168,39.9329127,87.647,87.562,11.4204792]
[1770564600470,2.7556801,87.642,87.561,11.42048611]
[1770564600798,2.7556801,87.637,87.56,0.1]
[1770564601070,2.7556801,87.632,87.56,0.1]
[1770564601254,39.9329127,87.647,87.504,5.13032502]
[1770564601255,2.7556801,87.627,87.538,11.42359858]
[1770564601452,2.7056801,87.622,87.543,11.42292824]
[1770564601650,2.7056801,87.622,87.504,57.1401508]
[1770564601651,2.7056801,87.62,87.557,11.42101318]
[1770564602057,2.7056801,87.62,87.552,11.42177818]
[1770564602253,2.7056801,87.618,87.539,11.42347982]
[1770564603464,2.7056801,87.618,87.535,11.42389211]
[1770564603663,2.7056801,87.613,87.535,11.42389211]
[1770564603864,5.13032502,87.614,87.495,0.33564851]
[1770564603865,2.7056801,87.609,87.495,0.33564851]
[1770564604064,2.7056801,87.609,87.501,11.42832567]
[1770564604556,2.7056801,87.604,87.501,11.42832567]
[1770564604752,2.7056801,87.604,87.502,0.33875617]
[1770564605472,2.7056801,87.604,87.507,0.34182814]
[1770564605671,2.7056801,87.604,87.511,0.34182814]
[1770564606880,2.7056801,87.602,87.517,0.34483599]
[1770564607594,2.7056801,87.615,87.517,0.34483599]
[1770564607877,7.14624967,87.616,87.522,0.3478093]
[1770564608057,7.14624967,87.616,87.552,5.36086188]
[1770564608255,7.14624967,87.616,87.563,0.3478093]
[1770564608455,2.7056801,87.615,87.563,0.3478093]
[1770564608971,7.14624967,87.616,87.566,0.35074846]
[1770564609675,2.7056801,87.635,87.574,0.35365386]
[1770564610071,2.7056801,87.633,87.574,0.35365386]
[1770564610870,2.7056801,87.652,87.577,0.35652588]
[1770564611078,2.7056801,87.65,87.577,0.35652588]
[1770564612074,2.7056801,87.65,87.587,0.35936492]
[1770564612666,2.7056801,87.675,87.597,0.36217135]
[1770564612867,2.7056801,87.673,87.598,39.95525011]
[1770564613077,2.7056801,87.673,87.599,0.36217135]
[1770564615865,2.7056801,87.671,87.607,0.37572732]
[1770564616162,2.7056801,87.671,87.601,0.37572732]
[1770564617676,2.7056801,87.671,87.6,39.95433789]
[1770564618183,2.7056801,87.669,87.592,11.41656772]
[1770564618382,2.7056801,87.666,87.572,28.54768499]
[1770564618581,2.7056801,87.666,87.591,11.41668226]
[1770564618785,2.7056801,87.666,87.586,11.4173376]
[1770564619191,2.7056801,87.666,87.591,11.41666558]
[1770564619367,2.7056801,87.666,87.592,0.38602221]
[1770564620183,2.7056801,87.664,87.593,11.41643738]
[1770564620386,2.7056801,87.664,87.594,0.38852245]
[1770564621388,2.7056801,87.664,87.593,39.95753084]
[1770564621389,2.7056801,87.664,87.596,0.39099398]
[1770564622274,2.7056801,87.662,87.598,0.39099398]
[1770564622986,2.7056801,87.662,87.605,5.36086188]
[1770564623193,2.7056801,87.662,87.606,0.39343712]
[1770564624594,7.15204737,87.675,87.608,0.39823953]
[1770564624796,2.7056801,87.674,87.616,0.39823953]
[1770564625673,2.7056801,87.674,87.61,5.13032502]
[1770564625873,2.7056801,87.673,87.611,0.40059945]
[1770564626074,2.7056801,87.673,87.617,0.40059945]
[1770564626584,2.7056801,87.673,87.619,0.40293226]
[1770564626973,2.7056801,87.698,87.623,0.40293226]
[1770564627180,2.7056801,87.698,87.626,0.40293226]
[1770564628183,2.7056801,87.709,87.652,5.36086188]
[1770564628482,7.14076362,87.74,87.622,1.14126589]
[1770564628483,7.14076362,87.74,87.663,2.66613282]
[1770564628784,7.14076362,87.74,87.662,10.4911869]
[1770564628785,1e-08,87.754,87.696,2.66613282]
[1770564628988,1e-08,87.754,87.695,5.36086188]
[1770564628989,1e-08,87.754,87.705,5.36086188]
[1770564629177,1e-08,87.754,87.716,2.66613282]
[1770564629686,28.46864103,87.816,87.726,2.66613282]
[1770564629998,28.46864103,87.816,87.678,2.66613282]
[1770564630196,28.46864103,87.816,87.707,2.66613282]
[1770564630391,28.46864103,87.816,87.719,2.66613282]
[1770564630590,28.46864103,87.816,87.704,5.13032502]
[1770564630591,2.68753468,87.815,87.727,2.66613282]
[1770564630785,2.68753468,87.815,87.724,5.13032502]
[1770564630996,2.68753468,87.815,87.737,2.66613282]
[1770564631787,2.68753468,87.815,87.721,39.89922595]
[1770564631993,2.68753468,87.815,87.722,2.66613282]
[1770564632194,2.68753468,87.815,87.721,11.39977884]
[1770564632392,2.68753468,87.815,87.708,28.50342348]
[1770564632608,2.68753468,87.81,87.702,41.1]
[1770564632906,2.68753468,87.806,87.703,11.40211851]
[1770564633089,2.68753468,87.802,87.703,39.90741479]
[1770564633284,2.68753468,87.802,87.704,2.66613282]
[1770564635109,2.68753468,87.797,87.705,39.90650475]
[1770564635797,2.68753468,87.797,87.706,2.66613282]
[1770564637210,96.81534465,87.796,87.707,11.4015985]
[1770564637406,2.68753468,87.795,87.708,2.66613282]
[1770564638612,7.13672384,87.816,87.707,39.90559476]
[1770564638613,2.68753468,87.804,87.711,2.66613282]
[1770564638796,2.68753468,87.804,87.707,96.91358728]
[1770564638797,2.68753468,87.804,87.725,5.36086188]
[1770564639120,2.68753468,87.804,87.726,2.66613282]
[1770564639416,7.13672384,87.816,87.736,2.66613282]
[1770564639417,2.68753468,87.802,87.736,2.66613282]
[1770564641390,2.68753468,87.8,87.738,2.66613282]
[1770564642211,2.68753468,87.81,87.746,2.66613282]
[1770564643706,2.68753468,87.81,87.748,2.66613282]
[1770564644510,2.68753468,87.808,87.748,2.66613282]
[1770564645097,2.68753468,87.808,87.747,39.88740355]
[1770564645912,2.79703227,87.806,87.739,2.7625426]
[1770564648627,2.79703227,87.804,87.74,11.39731023]
[1770564649121,2.79703227,87.804,87.741,2.7625426]
[1770564650822,2.79703227,87.802,87.743,2.7625426]
[1770564652820,2.79703227,87.8,87.745,2.7625426]
[1770564654400,7.13672384,87.816,87.745,2.7625426]
[1770564654401,2.79703227,87.815,87.745,2.7625426]
[1770564654708,2.79703227,87.814,87.745,2.7625426]
[1770564655523,2.79703227,87.812,87.747,2.7625426]
[1770564657620,2.79703227,87.812,87.749,2.7625426]
[1770564658198,2.79703227,87.81,87.749,2.7625426]
[1770564659923,2.79703227,87.808,87.751,2.7625426]
[1770564660626,2.79703227,87.808,87.75,39.88603988]
[1770564660832,2.79703227,87.808,87.742,2.7625426]
[1770564661034,2.79703227,87.808,87.745,11.39660533]
[1770564661222,2.79703227,87.808,87.729,11.3986168]
[1770564661523,2.79703227,87.805,87.713,2.7625426]
[1770564661937,2.79703227,87.8,87.717,2.7625426]
[1770564662714,2.79703227,87.8,87.683,57.02330992]
[1770564662715,2.79703227,87.8,87.709,11.40123363]
[1770564662921,2.79703227,87.798,87.696,11.40296587]
[1770564663117,2.79703227,87.796,87.69,2.7625426]
[1770564663323,2.79703227,87.788,87.69,2.7625426]
[1770564663509,2.79703227,87.786,87.69,2.7625426]
[1770564663907,2.79703227,87.781,87.641,2.7625426]
[1770564664103,2.79703227,87.776,87.648,2.7625426]
[1770564664304,2.79703227,87.771,87.648,2.7625426]
[1770564664529,2.79703227,87.766,87.648,2.7625426]
[1770564664715,2.79703227,87.761,87.647,28.52350676]
[1770564664911,2.79703227,87.756,87.647,28.52350676]
[1770564665112,2.79703227,87.751,87.647,28.52350676]
[1770564665313,2.79703227,87.746,87.653,11.40858094]
[1770564665543,2.79703227,87.741,87.638,2.7625426]
[1770564665743,2.79703227,87.736,87.626,2.7625426]
[1770564666036,2.79703227,87.726,87.622,28.53144985]
[1770564666214,2.79703227,87.718,87.623,2.7625426]
[1770564666407,2.79703227,87.71,87.623,2.7625426]
[1770564666609,2.79703227,87.708,87.623,2.7625426]
[1770564666810,3.53403225,87.708,87.623,2.7625426]
[1770564667024,2.79703227,87.706,87.623,2.7625426]
[1770564667234,2.79703227,87.705,87.623,2.7625426]
[1770564667534,2.79703227,87.703,87.623,2.7625426]
[1770564667830,2.79703227,87.702,87.623,2.7625426]
[1770564668035,2.79703227,87.7,87.625,2.7625426]
[1770564668536,2.79703227,87.697,87.606,2.7625426]
[1770564668738,2.79703227,87.692,87.598,11.41575646]
[1770564668911,2.79703227,87.69,87.598,11.41575646]
[1770564669239,2.79703227,87.686,87.603,11.41507575]
[1770564669424,2.79703227,87.681,87.603,11.41507575]
[1770564669610,2.79703227,87.679,87.603,11.41507575]
[1770564669811,2.79703227,87.679,87.607,2.7625426]
[1770564669812,2.79703227,87.678,87.607,2.7625426]
[1770564670132,2.79703227,87.676,87.626,2.7625426]
[1770564671018,2.79703227,87.678,87.626,2.7625426]
[1770564672443,2.79703227,87.676,87.628,2.7625426]
[1770564674328,2.79703227,87.676,87.627,11.41200771]
[1770564674526,2.79703227,87.674,87.601,11.41533731]
[1770564674725,2.79703227,87.674,87.606,11.41468926]
[1770564675117,2.79703227,87.674,87.607,2.56734178]
[1770564677124,2.79703227,87.674,87.617,2.56734178]
[1770564677824,2.55124662,87.672,87.608,11.41448269]
[1770564678146,2.55124662,87.672,87.609,2.56734178]
[1770564679245,2.55124662,87.67,87.611,2.56734178]
[1770564680453,2.55124662,87.67,87.6,11.41551321]
[1770564680649,2.55124662,87.67,87.588,11.4170209]
[1770564680950,2.55124662,87.67,87.593,11.41641218]
[1770564681473,2.55124662,87.668,87.587,2.56734178]
[1770564681757,2.55124662,87.667,87.587,2.56734178]
[1770564682067,2.55124662,87.666,87.587,2.56734178]
[1770564682253,2.55124662,87.665,87.587,2.56734178]
[1770564682449,2.55124662,87.664,87.587,2.56734178]
[1770564683470,2.55124662,87.662,87.589,2.56734178]
[1770564683670,2.55124662,87.659,87.583,11.41772919]
[1770564683972,5.13032502,87.66,87.583,11.41772919]
[1770564683973,2.55124662,87.657,87.583,11.41772919]
[1770564684140,2.55124662,87.656,87.583,11.41772919]
[1770564684344,2.55124662,87.655,87.588,11.41708909]
[1770564684544,2.55124662,87.654,87.588,11.41708909]
[1770564684853,2.55124662,87.653,87.578,2.56734178]
[1770564685057,2.55124662,87.653,87.589,2.56734178]
[1770564685561,18.57067523,87.654,87.591,2.56734178]
[1770564686540,2.55124662,87.653,87.595,2.56734178]
[1770564686754,7.16212546,87.654,87.595,2.56734178]
[1770564687341,2.55124662,87.653,87.595,2.56734178]
[1770564687541,2.55124662,87.651,87.597,2.56734178]
[1770564687947,2.55124662,87.651,87.576,2.56734178]
[1770564688454,39.93063477,87.652,87.531,2.56734178]
[1770564688455,2.55124662,87.648,87.531,2.56734178]
[1770564688763,2.55124662,87.648,87.534,5.36086188]
[1770564688944,2.55124662,87.646,87.535,2.56734178]
[1770564689144,2.55124662,87.645,87.535,2.56734178]
[1770564689346,2.55124662,87.644,87.535,2.56734178]
[1770564689560,2.55124662,87.642,87.55,2.56734178]
[1770564690167,2.55124662,87.641,87.55,2.56734178]
[1770564690346,2.55124662,87.64,87.55,2.56734178]
[1770564690546,2.55124662,87.633,87.537,2.56734178]
[1770564690749,2.55124662,87.628,87.537,2.56734178]
[1770564690948,2.55124662,87.623,87.537,2.56734178]
[1770564691259,2.55124662,87.619,87.537,2.56734178]
[1770564691644,39.94612979,87.618,87.538,39.9826361]
[1770564691862,2.55124662,87.617,87.539,2.56734178]
[1770564693166,2.55124662,87.617,87.545,2.56734178]
[1770564693665,2.55124662,87.617,87.555,2.56734178]
[1770564693970,7.1573246,87.623,87.557,2.56734178]
[1770564694262,9.70857122,87.623,87.557,2.56734178]
[1770564694450,2.55124662,87.622,87.557,2.56734178]
[1770564695450,2.55124662,87.621,87.557,2.56734178]
[1770564695754,2.55124662,87.621,87.556,11.42126182]
[1770564696568,2.55124662,87.619,87.548,11.42230547]
[1770564696945,2.55124662,87.619,87.548,39.97806916]
[1770564697345,2.55124662,87.619,87.548,42.54541094]
[1770564697770,2.55124662,87.619,87.549,2.56734178]
[1770564699769,2.55124662,87.617,87.55,11.42204454]
[1770564700380,2.55124662,87.617,87.55,13.98938632]
[1770564700754,5.13032502,87.614,87.518,3.04694384]
[1770564700952,5.13032502,87.606,87.518,0.47960206]
[1770564701153,5.13032502,87.602,87.518,0.47960206]
[1770564701447,2.55124662,87.6,87.531,2.56734178]
[1770564701650,2.55124662,87.598,87.531,2.56734178]
[1770564701865,2.55124662,87.594,87.534,2.56734178]
[1770564702064,2.55124662,87.593,87.534,2.56734178]
[1770564702355,2.55124662,87.592,87.534,2.56734178]
[1770564704476,2.55124662,87.59,87.536,2.56734178]
[1770564704672,7.15518569,87.593,87.536,2.56734178]
[1770564707169,7.15518569,87.593,87.538,2.57647337]
[1770564708581,7.15518569,87.593,87.54,2.57647337]
[1770564709254,4.50001866,87.593,87.541,2.57647337]
[1770564710372,4.50001866,87.593,87.543,2.57647337]
[1770564712297,2.49406239,87.592,87.544,39.97989581]
[1770564712471,2.49406239,87.592,87.545,2.57647337]
[1770564713281,2.49406239,87.591,87.545,2.57647337]
[1770564714786,4.50001866,87.593,87.546,11.42256642]
[1770564714787,2.49406239,87.589,87.546,11.42256642]
[1770564715491,2.49406239,87.589,87.547,2.57647337]
[1770564716792,4.50001866,87.593,87.549,2.57647337]
[1770564716985,2.49406239,87.611,87.549,2.57647337]
[1770564717664,2.49406239,87.621,87.549,2.57647337]
[1770564717867,2.49406239,87.621,87.563,2.57647337]
[1770564718177,2.49406239,87.63,87.563,2.57647337]
[1770564718783,2.49406239,87.63,87.565,2.57647337]
[1770564719385,2.49406239,87.649,87.577,5.13032502]
[1770564719687,2.49406239,87.665,87.591,2.57647337]
[1770564719890,2.49406239,87.665,87.593,2.57647337]
[1770564720570,7.17127466,87.672,87.604,5.13032502]
[1770564720789,7.17127466,87.672,87.61,7.93733525]
[1770564720981,2.49406239,87.698,87.625,2.57647337]
[1770564721791,2.49406239,87.698,87.63,5.36086188]
[1770564722099,2.49406239,87.71,87.633,2.57647337]
[1770564722469,11.39980547,87.721,87.654,2.56953818]
[1770564722470,2.49406239,87.721,87.654,2.56953818]
[1770564722674,2.49406239,87.732,87.654,2.56953818]
[1770564722888,2.49406239,87.732,87.667,2.56953818]
[1770564723878,2.49406239,87.73,87.663,39.92562425]
[1770564724107,2.49406239,87.73,87.664,2.55666025]
[1770564725007,2.49406239,87.728,87.666,2.54393023]
[1770564725495,2.49406239,87.728,87.669,2.53134643]
[1770564725878,2.49406239,87.752,87.673,2.53134643]
[1770564726087,2.49406239,87.751,87.673,2.53134643]
[1770564727494,2.49406239,87.759,87.675,2.50661079]
[1770564727697,11.3907487,87.791,87.699,5.13032502]
[1770564727898,1e-08,87.76,87.716,2.57647337]
[1770564728077,7.17343141,87.841,87.737,5.13032502]
[1770564728406,7.17343141,87.841,87.751,2.57647337]
[1770564728583,7.17343141,87.841,87.742,5.36086188]
[1770564728584,7.17343141,87.841,87.755,2.57647337]
[1770564729193,11.58436475,87.84,87.755,2.57647337]
[1770564729598,0.2,87.84,87.76,2.57647337]
[1770564729798,2.49406239,87.829,87.76,2.57647337]
[1770564731303,0.2,87.84,87.774,2.57647337]
[1770564731304,2.49406239,87.839,87.774,2.57647337]
[1770564731603,2.49406239,87.839,87.731,58.61732095]
[1770564731604,0.2,87.84,87.779,2.57647337]
[1770564731774,2.49406239,87.863,87.793,5.13032502]
[1770564732376,2.49406239,87.863,87.775,96.83850753]
[1770564732584,2.49406239,87.863,87.778,5.13032502]
[1770564732794,11.3814846,87.862,87.778,5.13032502]
[1770564732997,2.51821375,87.861,87.778,5.13032502]
[1770564733303,2.51821375,87.858,87.775,39.87467957]
[1770564733597,2.51821375,87.856,87.755,39.88376729]
[1770564734204,2.51821375,87.853,87.755,96.86057772]
[1770564735305,2.51821375,87.885,87.759,10.4911869]
[1770564735594,2.51821375,87.885,87.769,5.36086188]
[1770564735802,2.51821375,87.883,87.801,5.36086188]
[1770564735990,2.51821375,87.883,87.797,5.13032502]
[1770564736484,2.51821375,87.883,87.761,85.4593726]
[1770564736485,2.51821375,87.883,87.773,5.13032502]
[1770564737612,2.51821375,87.878,87.765,45.00954794]
[1770564738086,2.51821375,87.878,87.765,101.9798664]
[1770564738805,2.51821375,87.875,87.765,96.84954138]
[1770564739191,2.51821375,87.875,87.765,39.87922292]
[1770564739703,2.51821375,87.87,87.765,28.48515923]
[1770564741411,2.51821375,87.87,87.755,39.88376729]
[1770564741592,2.51821375,87.87,87.755,96.86057772]
[1770564741907,2.51821375,87.865,87.755,96.86057772]
[1770564744003,2.51821375,87.859,87.755,39.88376729]
[1770564744207,5.13032502,87.852,87.738,28.493827]
[1770564744408,2.51821375,87.836,87.749,11.3960459]
[1770564744701,2.51821375,87.836,87.755,11.39536208]
[1770564745407,2.51821375,87.836,87.738,28.493827]
[1770564745606,2.51821375,87.836,87.755,11.39536208]
[1770564745810,2.51821375,87.836,87.755,39.88376729]
[1770564745992,2.51821375,87.831,87.755,39.88376729]
[1770564746691,2.51821375,87.831,87.755,11.39536208]
[1770564747487,2.51821375,87.831,87.731,28.49601236]
[1770564747488,2.51821375,87.831,87.749,11.39602477]
[1770564748215,2.51821375,87.826,87.749,11.39602477]
[1770564748811,2.51821375,87.826,87.755,11.39536208]
[1770564749702,2.51821375,87.826,87.748,11.39626288]
[1770564750412,2.51821375,87.824,87.755,39.88376729]
[1770564751403,2.51821375,87.824,87.755,96.86057772]
[1770564752619,11.38627953,87.825,87.755,96.86057772]
[1770564752620,2.51821375,87.822,87.755,96.86057772]
[1770564754414,11.38587002,87.829,87.755,96.86057772]
[1770564754612,2.51821375,87.829,87.755,96.86057772]
[1770564755112,2.51821375,87.829,87.763,5.13032502]
[1770564755413,2.51821375,87.839,87.763,5.13032502]
[1770564755600,2.51821375,87.839,87.755,96.86057772]
[1770564756507,2.51821375,87.837,87.755,96.86057772]
[1770564759013,2.51821375,87.846,87.767,5.13032502]